Workbook

Sheet ESTIMATE
C1: PROJECT: DAVID T. CARDENAS SENIOR CENTER & POLICE HEADQUARTERS | N1: Web: http://sigmaestimations.com Email: info@sigmaestimations.com
C3: LOCATION: 108 N 3RD STREET FOWLER, CA 93625
A5: ITEM # | B5: DWG # | C5: CSI #/SUB DETAIL | D5: DESCRIPTION | E5: QTY. | F5: WASTE | G5: QTY. W/ WASTE | H5: UNIT | I5: UNIT LABOR HOURS | J5: TOTAL LABOR HOURS | K5: PER HOUR LABOR RATE | L5: TOTAL LABOR COST | M5: UNIT MATERIAL COST | N5: TOTAL MATERIAL COST | O5: ITEM COST | P5: TRADE COST
C6: 010000 | D6: DIVISION 01 — GENERAL REQUIREMENTS
A7: =IF(H7<>"",1+MAX(A1:A6),"") -> 1 | D7: Submittal Procedures | E7: 1 | F7: 0% | G7: =E7+(E7*F7) -> 1 | H7: LS | I7: 0.00 | J7: =I7*G7 -> 0.00 | K7: 0 | L7: =K7*J7 -> 0 | M7: 0 | N7: =M7*G7 -> 0 | O7: =L7+N7 -> 0
A8: =IF(H8<>"",1+MAX(A2:A7),"") -> 2 | D8: Temporary Facilities and Controls | E8: 1 | F8: 0% | G8: 1 | H8: LS | I8: 0.00 | J8: 0.00 | K8: 0 | L8: 0 | M8: 0 | N8: 0 | O8: 0
A9: =IF(H9<>"",1+MAX(A3:A8),"") -> 3 | D9: Closeout Procedures | E9: 1 | F9: 0% | G9: 1 | H9: LS | I9: 0.00 | J9: 0.00 | K9: 0 | L9: 0 | M9: 0 | N9: 0 | O9: 0
A10: =IF(H10<>"",1+MAX(A4:A9),"") -> 4 | D10: Payment Procedures | E10: 1 | F10: 0% | G10: 1 | H10: LS | I10: 0.00 | J10: 0.00 | K10: 0 | L10: 0 | M10: 0 | N10: 0 | O10: 0
A11: =IF(H11<>"",1+MAX(A5:A10),"") -> 5 | D11: Contract Modification Procedures | E11: 1 | F11: 0% | G11: 1 | H11: LS | I11: 0.00 | J11: 0.00 | K11: 0 | L11: 0 | M11: 0 | N11: 0 | O11: 0
A12: =IF(H12<>"",1+MAX(A1:A11),"") -> 6 | D12: Maintenance & Traffic Protection | E12: 1 | F12: 0% | G12: 1 | H12: LS | I12: 0.00 | J12: 0.00 | K12: 0 | L12: 0 | M12: 0 | N12: 0 | O12: 0
A13: =IF(H13<>"",1+MAX(A2:A12),"") ->  | D13: SUBTOTAL | L13: =IF(H13<>"",0.4*N13,"") ->  | M13: =IF(H13<>"",N13-L13,"") ->  | P13: =SUM(O7:O12) -> 0
C14: 090000 | D14: DIVISION 09 — FINISHES | L14: =IF(H14<>"",0.4*N14,"") ->  | M14: =IF(H14<>"",N14-L14,"") -> 
D16: Building Paint
D18: Wall Paint
A19: 7 | B19: A115,A401-A408 | C19: A115 | D19: PNT-1 Sherwin Williams | Arcade White SW7100 Finish: Eggshell | E19: 20730 | F19: 5% | G19: =E19+(E19*F19) -> 21767 | H19: SF | I19: 0.01 | J19: =I19*G19 -> 315.61 | K19: $34.49 | L19: =K19*J19 -> $10,885.54 | M19: $1.12 | N19: =M19*G19 -> $24,426.09 | O19: =L19+N19 -> $35,312
A20: 8 | B20: A115,A401-A408 | C20: A115 | D20: PNT-1 SG Sherwin Williams | Arcade White SW7100 Finish: Semi-Gloss | E20: 1960 | F20: 5% | G20: 2058 | H20: SF | I20: 0.01 | J20: =I20*G20 -> 29.84 | K20: $34.49 | L20: =K20*J20 -> $1,029.22 | M20: $1.31 | N20: =M20*G20 -> $2,698.42 | O20: =L20+N20 -> $3,728
A21: 9 | B21: A115,A401-A408 | C21: A115 | D21: PNT-3 Sherwin Williams | Downy SW7002 Finish: Semi-Gloss | E21: 983 | F21: 5% | G21: 1032 | H21: SF | I21: 0.01 | J21: 14.96 | K21: $34.49 | L21: $516.14 | M21: $1.29 | N21: $1,328.84 | O21: $1,845
A22: 10 | B22: A115,A401-A408 | C22: A115 | D22: PNT-4 Sherwin Williams | Agreeable Gray SW7029 Finish: Eggshell | E22: 1521 | F22: 5% | G22: =E22+(E22*F22) -> 1597 | H22: SF | I22: 0.01 | J22: =I22*G22 -> 23.16 | K22: $34.49 | L22: =K22*J22 -> $798.69 | M22: $1.29 | N22: =M22*G22 -> $2,056.30 | O22: =L22+N22 -> $2,855
A23: 11 | B23: A115,A401-A408 | C23: A115 | D23: Pnt-6 Sherwin Williams | Alabaster SW7008 Finish: Eggshell | E23: 338 | F23: 5% | G23: 355 | H23: SF | I23: 0.01 | J23: 5.15 | K23: $34.49 | L23: $177.72 | M23: $1.29 | N23: $457.55 | O23: $635
D25: Note: One Coat Primer and two Coat Paint Finish Assumed.
D27: Ceiling Paint
A28: 12 | B28: A114 | C28: A115 | D28: Ceiling & Soffit Paint PNT-2 Sherwin Williams | Ceiling Bright White Sw7007 | E28: 2915 | F28: 5% | G28: =E28+(E28*F28) -> 3061 | H28: SF | I28: 0.03 | J28: =I28*G28 -> 87.23 | K28: $34.49 | L28: =K28*J28 -> $3,008.61 | M28: $1.48 | N28: =M28*G28 -> $4,519.39 | O28: =L28+N28 -> $7,528
A29: 13 | B29: A114 | C29: A115 | D29: Open To Deck Paint PNT-2 Sherwin Williams | Ceiling Bright White Sw7007 | E29: 5822 | F29: 5% | G29: 6113 | H29: SF | I29: 0.03 | J29: 174.23 | K29: $34.49 | L29: $6,009.17 | M29: $1.54 | N29: $9,387.75 | O29: $15,397
D31: Note: One Coat Primer and two Coat Paint Finish Assumed.
D33: Door Paint
A34: 14 | B34: A601 | C34: A115 | D34: Epoxy Paint (3'0"x7'2"x1-3/4") HM Door w/ HM Frame | E34: 5 | F34: 0% | G34: =E34+(E34*F34) -> 5 | H34: EA | I34: 0.21 | J34: =I34*G34 -> 1.05 | K34: $34.49 | L34: =K34*J34 -> $36.24 | M34: $75.00 | N34: =M34*G34 -> $375.00 | O34: =L34+N34 -> $411
A35: 15 | B35: A601 | C35: A115 | D35: Epoxy Paint (3'0"x7'10"x1-3/4") HM Door w/ HM Frame | E35: 20 | F35: 0% | G35: =E35+(E35*F35) -> 20 | H35: EA | I35: 0.21 | J35: =I35*G35 -> 4.20 | K35: $34.49 | L35: =K35*J35 -> $144.94 | M35: $72.00 | N35: =M35*G35 -> $1,440.00 | O35: =L35+N35 -> $1,585
A36: 16 | B36: A601 | C36: A115 | D36: (8'0"x8'0"x3") MTL Door w/ HM Frame Paint PNT-5 Sherwin Williams Alluring White Sw6343 | E36: 2 | F36: 0% | G36: 2 | H36: EA | I36: 0.25 | J36: 0.50 | K36: $34.49 | L36: $17.08 | M36: $145.00 | N36: $290.00 | O36: $307
A37: 17 | B37: A601 | C37: A115 | D37: (3'0"x7'0"x1-3/4") MTL Door w/ HM Frame Paint PNT-5 Sherwin Williams Alluring White Sw6343 | E37: 2 | F37: 0% | G37: 2 | H37: EA | I37: 0.15 | J37: 0.30 | K37: $34.49 | L37: $10.18 | M37: $55.00 | N37: $110.00 | O37: $120
A38: 18 | B38: A601 | C38: A115 | D38: (6'0"x8'0"x3") MTL Door w/ HM Frame Paint PNT-5 Sherwin Williams Alluring White Sw6343 | E38: 1 | F38: 0% | G38: =E38+(E38*F38) -> 1 | H38: EA | I38: 0.15 | J38: =I38*G38 -> 0.15 | K38: $34.49 | L38: =K38*J38 -> $5.22 | M38: $110.00 | N38: =M38*G38 -> $110.00 | O38: =L38+N38 -> $115
A39: 19 | B39: A601 | C39: A115 | D39: (7'x8'0"x1-3/4") MTL Door w/ HM Frame Paint PNT-5 Sherwin Williams Alluring White Sw6343 | E39: 1 | F39: 0% | G39: 1 | H39: EA | I39: 0.15 | J39: 0.15 | K39: $34.49 | L39: $5.22 | M39: $125.00 | N39: $125.00 | O39: $130
D41: Note: One Coat Primer and two Coat Paint Finish Assumed.
D43: Window Frame Paint
A44: 20 | B44: A601 | C44: A115 | D44: Epoxy Paint on Window/ Storefront Frames | E44: 265 | F44: 5% | G44: =E44+(E44*F44) -> 278 | H44: LF | I44: 0.08 | J44: =I44*G44 -> 22.54 | K44: $34.49 | L44: =K44*J44 -> $777.34 | M44: $1.95 | N44: =M44*G44 -> $542.59 | O44: =L44+N44 -> $1,320
D46: Door Trim Paint
A47: 21 | B47: A601 | C47: A115 | D47: Paint on Door Trim | E47: 385 | F47: 5% | G47: =E47+(E47*F47) -> 404 | H47: LF | I47: 0.01 | J47: =I47*G47 -> 5.46 | K47: $34.49 | L47: =K47*J47 -> $188.22 | M47: $1.28 | N47: =M47*G47 -> $517.44 | O47: =L47+N47 -> $706
D49: Trash Enclosure Paint
A50: 22 | B50: A103 | C50: A115 | D50: Metal Column Paint HP-1 Pigmented Polyurethane System Color: Sherwin Williams - Rookwood Clay SW 2823 | E50: 20 | F50: 5% | G50: =E50+(E50*F50) -> 21 | H50: SF | I50: 0.02 | J50: =I50*G50 -> 0.35 | K50: $34.49 | L50: =K50*J50 -> $12.01 | M50: $2.51 | N50: =M50*G50 -> $52.23 | O50: =L50+N50 -> $64
A51: 23 | B51: A103 | C51: A115 | D51: 7'6" High Paint Chain Link Fence | E51: 33 | F51: 5% | G51: =E51+(E51*F51) -> 35 | H51: LF | I51: 0.23 | J51: =I51*G51 -> 8.00 | K51: $34.49 | L51: =K51*J51 -> $276.06 | M51: $6.55 | N51: =M51*G51 -> $226.96 | O51: =L51+N51 -> $503
D53: Note: One Coat Primer and two Coat Paint Finish Assumed.
D55: Entry Canopy Paint
A56: 24 | B56: S405 | C56: A115 | D56: Entry Canopy Paint HP-1 Pigmented Polyurethane System Color: Sherwin Williams - Rookwood Clay SW 2823 | E56: 185 | F56: 5% | G56: =E56+(E56*F56) -> 194 | H56: SF | I56: 0.02 | J56: =I56*G56 -> 3.09 | K56: $34.49 | L56: =K56*J56 -> $106.49 | M56: $3.33 | N56: =M56*G56 -> $645.88 | O56: =L56+N56 -> $752
A57: 25 | B57: S405 | C57: A115 | D57: Entry Canopy Gutter Paint HP-1 Pigmented Polyurethane System Color: Sherwin Williams - Rookwood Clay SW 2823 | E57: 25 | F57: 5% | G57: =E57+(E57*F57) -> 26 | H57: LF | I57: 0.08 | J57: =I57*G57 -> 2.12 | K57: $34.49 | L57: =K57*J57 -> $73.20 | M57: $1.85 | N57: =M57*G57 -> $47.59 | O57: =L57+N57 -> $121
D59: Parking Canopy Paint
A60: 26 | B60: A107 | C60: A115 | D60: Parking Canopy Paint HP-1 Pigmented Polyurethane System Color: Sherwin Williams - Rookwood Clay SW 2823 | E60: 2150 | F60: 5% | G60: =E60+(E60*F60) -> 2258 | H60: SF | I60: 0.01 | J60: =I60*G60 -> 26.64 | K60: $34.49 | L60: =K60*J60 -> $918.76 | M60: $2.15 | N60: =M60*G60 -> $4,853.63 | O60: =L60+N60 -> $5,772
D62: Steel Structural Paint
A63: 27 | B63: S201-S301-S304 | C63: A115 | D63: Metal Structure Element Paint PNT-1 Sherwin Williams | Arcade White SW7100 One Shop Coat Of Zinc Chromate Primer | E63: 2830 | F63: 5% | G63: =E63+(E63*F63) -> 2972 | H63: SF | I63: 0.13 | J63: =I63*G63 -> 391.64 | K63: $34.49 | L63: =K63*J63 -> $13,507.79 | M63: $1.15 | N63: =M63*G63 -> $3,417.23 | O63: =L63+N63 -> $16,925
D65: MEP Painting Items
A66: 28 | B66: M201-M204 | C66: A115 | D66: 18"X8" Grille Paint PNT-2 Sherwin Williams | Ceiling Bright White SW 7007 | E66: 7 | F66: 0% | G66: =E66+(E66*F66) -> 7 | H66: EA | I66: 0.05 | J66: =I66*G66 -> 0.37 | K66: $34.49 | L66: =K66*J66 -> $12.83 | M66: $1.26 | N66: =M66*G66 -> $8.84 | O66: =L66+N66 -> $22
A67: 29 | B67: M201-M204 | C67: A115 | D67: 20"X12" Grille Paint PNT-2 Sherwin Williams | Ceiling Bright White SW 7007 | E67: 8 | F67: 0% | G67: =E67+(E67*F67) -> 8 | H67: EA | I67: 0.05 | J67: =I67*G67 -> 0.43 | K67: $34.49 | L67: =K67*J67 -> $14.66 | M67: $1.26 | N67: =M67*G67 -> $10.10 | O67: =L67+N67 -> $25
A68: 30 | B68: M201-M204 | C68: A115 | D68: 36"x12" Grille Paint PNT-2 Sherwin Williams | Ceiling Bright White SW 7007 | E68: 2 | F68: 0% | G68: 2 | H68: EA | I68: 0.05 | J68: 0.11 | K68: $34.49 | L68: $3.66 | M68: $1.26 | N68: $2.53 | O68: $6
A69: 31 | B69: M201-M204 | C69: A115 | D69: 18"x6" Grille Paint PNT-2 Sherwin Williams | Ceiling Bright White SW 7007 | E69: 2 | F69: 0% | G69: 2 | H69: EA | I69: 0.05 | J69: 0.11 | K69: $34.49 | L69: $3.66 | M69: $1.26 | N69: $2.53 | O69: $6
A70: 32 | B70: M201-M204 | C70: A115 | D70: 16"x10" Grille Paint PNT-2 Sherwin Williams | Ceiling Bright White SW 7007 | E70: 1 | F70: 0% | G70: 1 | H70: EA | I70: 0.05 | J70: 0.05 | K70: $34.49 | L70: $1.83 | M70: $1.26 | N70: $1.26 | O70: $3
A71: 33 | B71: M201-M204 | C71: A115 | D71: 22"x10" Grille Paint PNT-2 Sherwin Williams | Ceiling Bright White SW 7007 | E71: 1 | F71: 0% | G71: 1 | H71: EA | I71: 0.05 | J71: 0.05 | K71: $34.49 | L71: $1.83 | M71: $1.26 | N71: $1.26 | O71: $3
A72: 34 | B72: M201-M204 | C72: A115 | D72: 9"x9" Diffuser Paint PNT-2 Sherwin Williams | Ceiling Bright White SW 7007 | E72: 2 | F72: 0% | G72: 2 | H72: EA | I72: 0.05 | J72: 0.11 | K72: $34.49 | L72: $3.66 | M72: $1.26 | N72: $2.53 | O72: $6
A73: 35 | B73: M201-M204 | C73: A115 | D73: 18"x18" Diffuser Paint PNT-2 Sherwin Williams | Ceiling Bright White SW 7007 | E73: 1 | F73: 0% | G73: 1 | H73: EA | I73: 0.05 | J73: 0.05 | K73: $34.49 | L73: $1.83 | M73: $1.26 | N73: $1.26 | O73: $3
A74: 36 | B74: M201-M204 | C74: A115 | D74: 24"x12" Grille Paint PNT-2 Sherwin Williams | Ceiling Bright White SW 7007 | E74: 2 | F74: 0% | G74: 2 | H74: EA | I74: 0.05 | J74: 0.11 | K74: $34.49 | L74: $3.66 | M74: $1.26 | N74: $2.53 | O74: $6
A75: 37 | B75: M201-M204 | C75: A115 | D75: 22"x22" Diffuser Paint PNT-2 Sherwin Williams | Ceiling Bright White SW 7007 | E75: 1 | F75: 0% | G75: 1 | H75: EA | I75: 0.05 | J75: 0.05 | K75: $34.49 | L75: $1.83 | M75: $1.26 | N75: $1.26 | O75: $3
A76: 38 | B76: E100 | C76: 5/E-700 | D76: Yellow Paint on (4" Dia.x3'6"H) Guard Post | E76: 2 | F76: 0% | G76: =E76+(E76*F76) -> 2 | H76: EA | I76: 0.13 | J76: =I76*G76 -> 0.27 | K76: $34.49 | L76: =K76*J76 -> $9.14 | M76: $18.25 | N76: =M76*G76 -> $36.50 | O76: =L76+N76 -> $46
A77: =IF(H77<>"",1+MAX(A66:A76),"") -> 
D78: Misc. Paint Items
A79: 39 | B79: E400 | C79: 10/E420 | D79: White Paint on (4'0"x8'0") Fire Retardant Backboard Plywood | E79: 1 | F79: 0% | G79: 1 | H79: EA | I79: 0.13 | J79: 0.13 | K79: $34.49 | L79: $4.57 | M79: $15.28 | N79: $15.28 | O79: $20
A80: 40 | B80: P100 | C80: H/P401 | D80: 9"x18" Gas Valve Sign Paint Red @ Back (Weather Proof Paint) | E80: 2 | F80: 5% | G80: =E80+(E80*F80) -> 2 | H80: SF | I80: 0.11 | J80: 0.23 | K80: $34.49 | L80: $8.03 | M80: $1.15 | N80: $2.42 | O80: $10
A81: 41 | B81: A201-A202 | C81: E1/A602 | D81: Paint on 24 GA. G.I. Flashing & Counter flashing | E81: 235 | F81: 5% | G81: 247 | H81: LF | I81: 0.03 | J81: 6.61 | K81: $34.49 | L81: $227.87 | M81: $0.76 | N81: $188.15 | O81: $416
D83: SUBTOTAL | P83: =SUM(O15:O82) -> $96,707
C84: 320000 | D84: DIVISION 32 — EXTERIOR IMPROVEMENTS | L84: =IF(H84<>"",0.4*N84,"") ->  | M84: =IF(H84<>"",N84-L84,"") -> 
D86: Site Paint
D88: Paint on Curb
A89: 42 | B89: C4 | C89: 9/C12 | D89: Paint on 6" H Curb (Top & Sides) - Paint Curb Blue | E89: 307 | F89: 5% | G89: =E89+(E89*F89) -> 322 | H89: LF | I89: 0.02 | J89: =I89*G89 -> 6.21 | K89: $40.83 | L89: =K89*J89 -> $253.73 | M89: $1.23 | N89: =M89*G89 -> $397.09 | O89: =L89+N89 -> $651
A90: 43 | B90: A108 | C90: A108 | D90: Paint on 6" H Warning Curb (Top & Sides) - Sherwin Williams B97YD2467 | E90: 50 | F90: 5% | G90: =E90+(E90*F90) -> 53 | H90: LF | I90: 0.02 | J90: =I90*G90 -> 1.01 | K90: $40.83 | L90: =K90*J90 -> $41.32 | M90: $1.23 | N90: =M90*G90 -> $64.67 | O90: =L90+N90 -> $106
A91: 44 | B91: C4 | C91: C4 | D91: 4" Wide Yellow Paint Transit Loading Curb | E91: 40 | F91: 5% | G91: =E91+(E91*F91) -> 42 | H91: LF | I91: 0.02 | J91: =I91*G91 -> 0.81 | K91: $40.83 | L91: =K91*J91 -> $33.06 | M91: $1.25 | N91: =M91*G91 -> $52.50 | O91: =L91+N91 -> $86
D93: Pavement Markings
A94: 45 | B94: C4 | C94: C4 | D94: 4" Wide White Painted Parking Stripe | E94: 1412 | F94: 5% | G94: =E94+(E94*F94) -> 1483 | H94: LF | I94: 0.01 | J94: =I94*G94 -> 17.68 | K94: $40.83 | L94: =K94*J94 -> $721.90 | M94: $6.69 | N94: =M94*G94 -> $9,913.03 | O94: =L94+N94 -> $10,635
A95: 46 | B95: C4 | C95: C4 | D95: (4'-6"x4'-6") Accessible Parking Sign White On Blue Paint | E95: 2 | F95: 0% | G95: 2 | H95: EA | I95: 0.01 | J95: 0.02 | K95: $40.83 | L95: $0.87 | M95: $7.56 | N95: $15.13 | O95: $16
A96: 47 | B96: C4 | C96: C4 | D96: (12"H) "Loading Zone" White Painted Letters | E96: 11 | F96: 0% | G96: =E96+(E96*F96) -> 11 | H96: EA | I96: 0.01 | J96: =I96*G96 -> 0.12 | K96: $40.83 | L96: =K96*J96 -> $4.77 | M96: $7.56 | N96: =M96*G96 -> $83.19 | O96: =L96+N96 -> $88
D98: Bollard Cap Paint
A99: 48 | B99: A110 | C99: P401 | D99: 4" Dia Bollard Paint Yellow | E99: 20 | F99: 0% | G99: =E99+(E99*F99) -> 20 | H99: EA | I99: 0.03 | J99: =I99*G99 -> 0.60 | K99: $40.83 | L99: =K99*J99 -> $24.29 | M99: $101.41 | N99: =M99*G99 -> $2,028.25 | O99: =L99+N99 -> $2,053
A101: =IF(H101<>"",1+MAX(#REF!),"") ->  | D101: SUBTOTAL | P101: =SUM(O85:O100) -> $13,634
A102: SUB TOTAL | L102: =SUM(L6:L101) -> $39,882.87 | N102: =SUM(N6:N101) -> $70,458.18 | O102: =SUM(O6:O101) -> $110,341 | P102: =SUM(P6:P101) -> $110,341
A103: TAX | N103: 8.5% | P103: =P102*N103 -> $9,379
A104: PROFIT | N104: 10% | P104: =P102*N104 -> $11,034
A105: CONTIGENCIES | N105: 5% | P105: =P102*N105 -> $5,517
A106: TOTAL BASE BID | P106: =SUM(P102:P105) -> $136,271
A107: General Exclusions: Any kind of controlled inspection, contaminated material, architect and engineering fees, security, building charges, signage, sign off, protection of adjoining building (if any), any work not mentioned above.
A108: General Notes: The prices used are taken from RS Means online i.e. the standard pricing, the company is not responsible for any kind of variations in the prices. So it is preferred to review the prices.

Sheet REPORT
B1: Project :- DAVID T. CARDENAS SENIOR CENTER & POLICE HEADQUARTERS
B3: Location :- 108 N 3RD STREET FOWLER, CA 93625
B5: Estimate Date :- 18th-September-2024
B7: Painting Estimate
A9: Sr. # | B9: Description | C9: Unit | D9: QTY | E9: Material Rate | F9: Material Amount | G9: Labor Rate | H9: Labor Amount | I9: Unit Rate | J9: Amount
A10: =+IF(ISNUMBER(I10),MAX(A9:A$10)+1,"") -> 
B11: Building Paint
B12: Painting to Wall
A13: =+IF(ISNUMBER(I13),MAX(A$12:A12)+1,"") -> 1 | B13: Wall Paint | C13: Sq.ft | D13: 25532 | E13: 0.35 | F13: =D13*E13 -> 8,936.20 | G13: =+I13-E13 -> 2.15 | H13: =D13*G13 -> 54,893.80 | I13: 2.50 | J13: =+I13*D13 -> 63,830.00
A14: =+IF(ISNUMBER(I14),MAX(A$12:A13)+1,"") -> 
A15: =+IF(ISNUMBER(I15),MAX(A$12:A14)+1,"") ->  | B15: Painting to Ceiling
A16: =+IF(ISNUMBER(I16),MAX(A$12:A15)+1,"") -> 2 | B16: GWB Ceiling/ Exposed Ceiling Paint | C16: Sq.ft | D16: 8737 | E16: 0.35 | F16: =D16*E16 -> 3,057.95 | G16: =+I16-E16 -> 2.15 | H16: =D16*G16 -> 18,784.55 | I16: 2.50 | J16: =+I16*D16 -> 21,842.50
A17: =+IF(ISNUMBER(I17),MAX(A$12:A16)+1,"") -> 
A18: =+IF(ISNUMBER(I18),MAX(A$12:A17)+1,"") ->  | B18: Door Paint
A19: =+IF(ISNUMBER(I19),MAX(A$12:A18)+1,"") -> 3 | B19: Door w/ Frame Paint | C19: Sq.ft | D19: 850 | E19: 0.35 | F19: =D19*E19 -> 297.50 | G19: =+I19-E19 -> 2.15 | H19: =D19*G19 -> 1,827.50 | I19: 2.50 | J19: =+I19*D19 -> 2,125.00
A20: =+IF(ISNUMBER(I20),MAX(A$12:A19)+1,"") -> 
A21: =+IF(ISNUMBER(I21),MAX(A$12:A20)+1,"") ->  | B21: Window Frame Paint
A22: =+IF(ISNUMBER(I22),MAX(A$12:A21)+1,"") -> 4 | B22: Epoxy Paint on Window/ Storefront Frames | C22: Sq.ft | D22: 75 | E22: 0.35 | F22: =D22*E22 -> 26.25 | G22: =+I22-E22 -> 2.15 | H22: =D22*G22 -> 161.25 | I22: 2.50 | J22: =+I22*D22 -> 187.50
A23: =+IF(ISNUMBER(I23),MAX(A$12:A22)+1,"") -> 
A24: =+IF(ISNUMBER(I24),MAX(A$12:A23)+1,"") ->  | B24: Door Trim Paint
A25: =+IF(ISNUMBER(I25),MAX(A$12:A24)+1,"") -> 5 | B25: Paint on Door Trim | C25: Sq.ft | D25: 92 | E25: 0.35 | F25: =D25*E25 -> 32.20 | G25: =+I25-E25 -> 2.15 | H25: =D25*G25 -> 197.80 | I25: 2.50 | J25: =+I25*D25 -> 230.00
A26: =+IF(ISNUMBER(I26),MAX(A$12:A25)+1,"") -> 
A27: =+IF(ISNUMBER(I27),MAX(A$12:A26)+1,"") ->  | B27: Trash Enclosure Paint
A28: =+IF(ISNUMBER(I28),MAX(A$12:A27)+1,"") -> 6 | B28: Metal Column Paint HP-1 | C28: Sq.ft | D28: 20 | E28: 0.35 | F28: =D28*E28 -> 7.00 | G28: =+I28-E28 -> 2.15 | H28: =D28*G28 -> 43.00 | I28: 2.50 | J28: =+I28*D28 -> 50.00
A29: =+IF(ISNUMBER(I29),MAX(A$12:A28)+1,"") -> 7 | B29: 7'6" High Paint Chain Link Fence | C29: Sq.ft | D29: 115 | E29: 0.35 | F29: =D29*E29 -> 40.25 | G29: =+I29-E29 -> 2.15 | H29: =D29*G29 -> 247.25 | I29: 2.50 | J29: =+I29*D29 -> 287.50
A30: =+IF(ISNUMBER(I30),MAX(A$12:A29)+1,"") -> 
A31: =+IF(ISNUMBER(I31),MAX(A$12:A30)+1,"") ->  | B31: Entry Canopy Paint
A32: =+IF(ISNUMBER(I32),MAX(A$12:A31)+1,"") -> 8 | B32: Entry Canopy Paint HP-1 | C32: Sq.ft | D32: 185 | E32: 0.35 | F32: 64.75 | G32: 2.15 | H32: 397.75 | I32: 2.50 | J32: 462.50
A33: =+IF(ISNUMBER(I33),MAX(A$12:A32)+1,"") -> 9 | B33: Entry Canopy Gutter Paint HP-1 | C33: Sq.ft | D33: 25 | E33: 0.35 | F33: =D33*E33 -> 8.75 | G33: =+I33-E33 -> 2.15 | H33: =D33*G33 -> 53.75 | I33: 2.50 | J33: =+I33*D33 -> 62.50
A34: =+IF(ISNUMBER(I34),MAX(A$12:A33)+1,"") -> 
A35: =+IF(ISNUMBER(I35),MAX(A$12:A34)+1,"") ->  | B35: Parking Canopy Paint
A36: =+IF(ISNUMBER(I36),MAX(A$12:A35)+1,"") -> 10 | B36: Parking Canopy Paint HP-1 | C36: Sq.ft | D36: 2150 | E36: 0.35 | F36: 752.50 | G36: 2.15 | H36: 4,622.50 | I36: 2.50 | J36: 5,375.00
A37: =+IF(ISNUMBER(I37),MAX(A$12:A36)+1,"") -> 
A38: =+IF(ISNUMBER(I38),MAX(A$12:A37)+1,"") ->  | B38: Steel Structural Paint
A39: =+IF(ISNUMBER(I39),MAX(A$12:A38)+1,"") -> 11 | B39: Metal Structure Element Paint PNT-1 | C39: Sq.ft | D39: 2830 | E39: 0.35 | F39: 990.50 | G39: 2.15 | H39: 6,084.50 | I39: 2.50 | J39: 7,075.00
A40: =+IF(ISNUMBER(I40),MAX(A$12:A39)+1,"") -> 
A41: =+IF(ISNUMBER(I41),MAX(A$12:A40)+1,"") ->  | B41: MEP Painting Items
A42: =+IF(ISNUMBER(I42),MAX(A$12:A41)+1,"") -> 12 | B42: Mechanical Ceiling Grille Paint PNT2 | C42: Sq.ft | D42: 43 | E42: 0.35 | F42: =D42*E42 -> 15.05 | G42: =+I42-E42 -> 2.15 | H42: =D42*G42 -> 92.45 | I42: 2.50 | J42: =+I42*D42 -> 107.50
A43: =+IF(ISNUMBER(I43),MAX(A$12:A42)+1,"") -> 
A44: =+IF(ISNUMBER(I44),MAX(A$12:A43)+1,"") ->  | B44: Misc. Paint Items
A45: =+IF(ISNUMBER(I45),MAX(A$12:A44)+1,"") -> 13 | B45: White Paint on Backboard Plywood | C45: Sq.ft | D45: 32 | E45: 0.35 | F45: 11.20 | G45: 2.15 | H45: 68.80 | I45: 2.50 | J45: 80.00
A46: =+IF(ISNUMBER(I46),MAX(A$12:A45)+1,"") -> 14 | B46: Gas Valve Sign Paint Red | C46: Sq.ft | D46: 2 | E46: 0.35 | F46: 0.70 | G46: 2.15 | H46: 4.30 | I46: 2.50 | J46: 5.00
A47: =+IF(ISNUMBER(I47),MAX(A$12:A46)+1,"") -> 15 | B47: Paint on Flashing & Counter flashing | C47: Sq.ft | D47: 66 | E47: 0.35 | F47: 23.10 | G47: 2.15 | H47: 141.90 | I47: 2.50 | J47: 165.00
A48: =+IF(ISNUMBER(I48),MAX(A$12:A47)+1,"") -> 
A49: =+IF(ISNUMBER(I49),MAX(A$12:A48)+1,"") ->  | B49: Site Painting
A50: =+IF(ISNUMBER(I50),MAX(A$12:A49)+1,"") -> 
A51: =+IF(ISNUMBER(I51),MAX(A$12:A50)+1,"") ->  | B51: Painting to Curb
A52: =+IF(ISNUMBER(I52),MAX(A$12:A51)+1,"") -> 16 | B52: Curb Paint | C52: Sq.ft | D52: 280 | E52: 0.35 | F52: =D52*E52 -> 98.00 | G52: =+I52-E52 -> 2.15 | H52: =D52*G52 -> 602.00 | I52: 2.50 | J52: =+I52*D52 -> 700.00
A53: =+IF(ISNUMBER(I53),MAX(A$12:A52)+1,"") -> 
A54: =+IF(ISNUMBER(I54),MAX(A$12:A53)+1,"") ->  | B54: Pavement Markings
A55: =+IF(ISNUMBER(I55),MAX(A$12:A54)+1,"") -> 17 | B55: Painted Parking Stripe | C55: Sq.ft | D55: 493 | E55: 0.35 | F55: =D55*E55 -> 172.55 | G55: =+I55-E55 -> 2.15 | H55: =D55*G55 -> 1,059.95 | I55: 2.50 | J55: =+I55*D55 -> 1,232.50
A56: =+IF(ISNUMBER(I56),MAX(A$12:A55)+1,"") -> 18 | B56: Accessible Parking Sign Paint | C56: Sq.ft | D56: =4.5*4.5*2 -> 41 | E56: 0.35 | F56: =D56*E56 -> 14.18 | G56: =+I56-E56 -> 2.15 | H56: =D56*G56 -> 87.08 | I56: 2.50 | J56: =+I56*D56 -> 101.25
A57: =+IF(ISNUMBER(I57),MAX(A$12:A56)+1,"") -> 19 | B57: White Painted Letters | C57: Sq.ft | D57: 5 | E57: 0.35 | F57: =D57*E57 -> 1.75 | G57: =+I57-E57 -> 2.15 | H57: =D57*G57 -> 10.75 | I57: 2.50 | J57: =+I57*D57 -> 12.50
A58: =+IF(ISNUMBER(I58),MAX(A$12:A57)+1,"") -> 
A59: =+IF(ISNUMBER(I59),MAX(A$12:A58)+1,"") ->  | B59: Bollard Paint
A60: =+IF(ISNUMBER(I60),MAX(A$12:A59)+1,"") -> 20 | B60: Yellow Bollard Paint | C60: Sq.ft | D60: 73 | E60: 0.35 | F60: =D60*E60 -> 25.55 | G60: =+I60-E60 -> 2.15 | H60: =D60*G60 -> 156.95 | I60: 2.50 | J60: =+I60*D60 -> 182.50
A61: =+IF(ISNUMBER(I61),MAX(A$10:A60)+1,"") -> 
B63: Sub Total | E63: =SUM(F10:F61) -> 14,575.93 | G63: =SUM(H10:H61) -> 89,537.83 | I63: =SUM(J10:J61) -> 104,113.75
B66: Insurance | C66: 3% | E66: =+E63*C66 -> 437.28 | G66: =+G63*C66 -> 2,686.13 | I66: =I63*C66 -> 3,123.41
B68: Overhead and Profit | C68: 22% | E68: =+E63*C68 -> 3,206.70 | G68: =+G63*C68 -> 19,698.32 | I68: =+I63*C68 -> 22,905.03
B70: Total Amount | E70: =+E68+E66+E63 -> 18,219.91 | G70: =+G68+G66+G63 -> 111,922.28 | I70: =I63+I66+I68 -> 130,142.19
B74: Note:-

Sheet UJ (hidden)
C2: PROJECT: | D2: 625 PARK AVE PHASE 1B
C3: ADDRESS: | D3: 625 PARK AVENUE,
D4: NEW YORK, NY-10065.
H6: DATE | I6: =TODAY() -> 2026-07-28
A7: ITEM # | B7: CSI SEC. | C7: DESCRIPTION | D7: QTY. | E7: WASTE | F7: QTY. W/ WASTE | G7: UNIT | H7: UNIT COST | I7: TRADE COST | L7: Single side areas
C8: SCOPE OF WORK | L8: Dry | M8: Wet
A9: 1 | B9: 09 29 | C9: 2 layered 5/8" thick USG fiberock brand panels for walls and ceilings. | D9: 11,635 | E9: 10% | F9: =D9*(1+E9) -> 12,799 | G9: sf | H9: $4.0 | I9: =H9*F9 -> $51,194 | J9: Type 1+Type 4+Type 6+ceiling | K9: Type 1 | L9: =2520-80 -> 2440 | M9: 280 | N9: =(2440*2+290*2+2345+3830) -> 11635
A10: 2 | B10: 09 29 | C10: 2 layerd 5/8" thick USG fiberock aqua tough brand panels for wall and ceilings in wet areas. | D10: 1,185 | E10: 10% | F10: =D10*(1+E10) -> 1,304 | G10: sf | H10: $4.5 | I10: =H10*F10 -> $5,866 | J10: Type 1+Type 4+Type 6+wet ceiling | K10: Type 2 | L10: =210-80 -> 130 | M10: 80 | N10: =(280*2+325+300) -> 1185
A11: 3 | B11: 09 29 | C11: 2 layered 2 HR rated 5/8" thick USG fiberock brand panels for walls. | D11: 260 | E11: 10% | F11: =D11*(1+E11) -> 286 | G11: sf | H11: $4.5 | I11: =H11*F11 -> $1,287 | J11: Type 2 | K11: Type 3 | N11: =130*2 -> 260
A12: 4 | B12: 09 29 | C12: 2 layered 2 HR rated 5/8" thick USG fiberock aqua tough brand panels for walls in wet areas. | D12: 160 | E12: 10% | F12: 176 | G12: sf | H12: $5.0 | I12: =H12*F12 -> $880 | J12: Type 2 | K12: Type 4 | L12: 290 | N12: =80*2 -> 160
A13: 5 | B13: 09 29 | C13: 3 layered 3 HR rated 5/8" thick USG fiberock brand panels for walls. | D13: 300 | E13: 10% | F13: 330 | G13: sf | H13: $4.0 | I13: =H13*F13 -> $1,320 | J13: Type 7 | K13: Type 5 | L13: 1200 | N13: =150*2 -> 300
A14: 6 | B14: 09 26 | C14: 3/32" thick gypsum veneer plaster skim coat. | D14: 14,740 | E14: 10% | F14: 16,214 | G14: sf | H14: $4.0 | I14: =H14*F14 -> $64,856 | J14: Type 1+Type 2+ Type 4+Type 5+Type 6 +Type 7 | K14: Type 6 | L14: =2670-325 -> 2345 | M14: 325 | N14: =SUM(N9:N13)+L13 -> 14740 | O14: =SUM(L9:M10)*2+L13+SUM(L14:M14)+L15*2+SUM(L17:M17)+L12*2 -> 14740 | P14: =N14-O14 -> 0
A15: 7 | B15: 09 22 16 | C15: 3-5/8" steel studs 20 GA @ 16" O.C. | D15: 5,750 | E15: 10% | F15: 6,325 | G15: sf | H15: $2.5 | I15: =H15*F15 -> $15,813 | J15: Type 1+Type 2+Type 6+Type 7 | K15: Type 7 | L15: 150 | N15: =SUM(L9:M10)+SUM(L14:M15) -> 5750
A16: 8 | B16: 10 22 16 | C16: 1-5/8" steel studs 20 GA @ 12" O.C. | D16: 290 | E16: 10% | F16: 319 | G16: sf | H16: $2.0 | I16: $638 | J16: Type 4 | K16: Type 8 | L16: 20
A17: 8 | B17: 09 22 26 | C17: Ceiling suspension system. | D17: 4,130 | E17: 10% | F17: 4,543 | G17: sf | H17: $3.0 | I17: =H17*F17 -> $13,629 | K17: Ceiling | L17: 3830 | M17: 300 | N17: =SUM(L17:M17) -> 4130
A18: 9 | B18: 07 21 16 | C18: Batt Insulation. | D18: 5,600 | E18: 5% | F18: 5,880 | G18: sf | H18: $2.0 | I18: =H18*F18 -> $11,760 | J18: Type 1+Type 2+ Type 6 | N18: =SUM(L9:M10)+SUM(L14:M14) -> 5600
A19: 10 | B19: 07 21 16 | C19: Batt Insulation type SAFB. | D19: 150 | E19: 10% | F19: 165 | G19: sf | H19: $2.2 | I19: =H19*F19 -> $363 | J19: Type 7 | N19: 150
A21: SUB TOTAL | I21: =SUM(I9:I19) -> $167,605
A22: INSURANCE (3%) | I22: =(3/100)*I21 -> $5,028
A23: TOTAL BASE BID | I23: =SUM(I21:I22) -> $172,633
C25: Exclusions
B26: 1 | C26: Mouldings
B27: 2 | C27: Patch work
B28: 3 | C28: Fixtures
B29: 4 | C29: Electrical work
B30: 5 | C30: Stone and/or tile work
B31: 6 | C31: Wall type 8 [no details on provided on the drawing]

Sheet DETAIL (2) (hidden)
B2: PROJECT: | C2: 625 PARK AVE PHASE 1B
B3: ADDRESS: | C3: 625 PARK AVENUE
C4: NEW YORK, NY 10065
E6: DATE | F6: =TODAY() -> 2026-07-28
A7: ITEM # | B7: DESCRIPTION | C7: UNIT COST | D7: QTY. | E7: UNIT | F7: TRADE COST
B8: SCOPE OF WORK
A9: 1 | B9: 5/8" 2 layered USG fiberock brand panels. | D9: =((2358+277+2077)-644)+3830 -> 7,898 | E9: sf | F9: =C9*D9 -> 0 | G9: Type 1+Type 4+Type 6+ceiling
A10: 2 | B10: 5/8" 2 layered USG fiberock aqua tough brand panels. (Wet area). | D10: =644+292 -> 936 | E10: sf | F10: =C10*D10 -> 0 | G10: Type 1+Type 4+Type 6+wet ceiling | I10: Height 9'6"
A11: 3 | B11: 2 HR rated 5/8" 2 layered USG fiberock brand panels. | D11: =206-78 -> 128 | E11: sf | F11: 0 | G11: Type 2 | I11: For Doors & Cabinets 1'3"
A12: 4 | B12: 2 HR rated 5/8" 2 layered USG fiberock aqua tough brand panels. (Wet area). | D12: 78 | E12: sf | F12: 0 | G12: Type 2
A13: 5 | B13: 3 HR rated 5/8" 3 layered USG fiberock brand panels. | D13: 148 | E13: sf | F13: 0 | G13: Type 7
A14: 6 | B14: 3/32" thick gypsum veneer plaster skim coat. | D14: =2538+206+277+1343+2077+148 -> 6,589 | E14: sf | F14: 0 | G14: Type 1+Type 2+ Type 4+Type 5+Type 6 +Type 7
A15: 7 | B15: 3 5/8" steel studs 20 GA @ 16" O.C. | D15: 4,968 | E15: sf | F15: 0 | G15: Type 1+Type 2+Type 6+Type 7
A16: 8 | B16: 1 5/8" steel studs 20 GA @ 12" O.C. | D16: 277 | E16: sf | F16: 0 | G16: Type 4
A17: 9 | B17: Batt sound Insulation. | D17: =2538+206+2077 -> 4,821 | E17: sf | F17: 0 | G17: Type 1+Type 2+ Type 6
A18: 10 | B18: Batt sound Insulation type SAFB. | D18: 148 | E18: sf | F18: 0 | G18: Type 7 | H18: QTY Details
H19: Type 1 | I19: 2538 | J19: 2520
A20: TOTAL | F20: =SUM(F9:F18) -> 0 | H20: Type 2 | I20: 205 | J20: 206
B21: Exclusions | H21: Type 3 | I21: N/A
A22: 1 | B22: Mouldings | H22: Type 4 | I22: 277 | J22: 290
A23: 2 | B23: Patch work | H23: Type 5 | I23: 1342 | J23: 1200
A24: 3 | B24: Fixtures | H24: Type 6 | I24: 2077 | J24: 2670
A25: 4 | B25: Electrical work | H25: Type 7 | I25: 148 | J25: 150
A26: 5 | B26: Stone and/or tile work | H26: Type 8 | I26: 22 | J26: 20 | K26: No details given
A27: 6 | H27: Ceiling | I27: 3830
H28: Wet Ceiling | I28: 292
B31: DETAILS
B32: Type 1- Interior Partition | G32: Type 2- 2HR rated Interior Partition | H32: Type
B33: 2 layers 5/8' USG fiberock brand panels (Fiberock aqua tough brand at all wet areas) Glue second layer, finished with 3-32" thick gypsum veneer plaster skim coat. 3 5/8" Stl studs 20 GA @16" O.C with Batt insulation. 2 layers 5/8" USG fiberock brand panels(Fiberock aqua tough brand at all wet areas finished 3-32" thick gypsum veneer plaster skim coat | G33: 2 layers 5/8' USG fiberock brand panels (Fiberock aqua tough brand at all wet areas) Glue second layer, finished with 3-32" thick gypsum veneer plaster skim coat. 3 5/8" Stl studs 20 GA @16" O.C with Batt insulation. 2 layers 5/8" USG fiberock brand panels(Fiberock aqua tough brand at all wet areas finished 3-32" thick gypsum veneer plaster skim coat
B35: TYPE 3 Interior partition at chase | G35: TYPE 4 Pocket door partition
B36: 2 layer 5/8" USG fiberock brand panels ( Fiberock aqua tough brand at all wet areas ) Glue second layer fill batt insulation, finished with 3/32" thick gypsum veneer plaster skim coat. 20 Ga 2-1/2" mtl studs @ 16 O.C. with batt insulation. Pipe chase space. 2 layers 5/8" USG fiberock brand panels (Fiberock aqua tough brand at all wet areas finished with 3/32" thick gypsum veneer plaster skim coat. | G36: 2 Layers 5/8" USG fiberock brand panels (Fiberock Aqua tough brand at all wet areas) Glue second layer, Finished with 3/32" thick gypsum veneer plaster skim coat. 1 5/8" 20 Ga stl studs @12 O.C. 2 layer 5/8" USG fiberock brand panels (fiberock aqua tough brand at wet areas) finished with 3/32" thick gypsum veneer plaster skim coat.
B38: TYPE 5 Existing wall skim coat | G38: TYPE 6 EXISTING WALL- Furring
B39: Apply 3/32" Thick gypsum veneer skim coat. Fill and smooth all imperfections | G39: 3 5/8" 20 Ga stl studs @ 16 O.C. 2 layers 5/8" USG fiberock brand panels dimensions from exterior wall to be varified with architect. Fill with Batt insulation, Finished with 3/32" Thick Gypsum veneer plaster skim coat
B40: TYPE 7 Interior Partition- 3 Hr rated
B41: 3 layer 5/8" USG fiberock brand panels, glue third layer finished with 3/32" thick gypsum veneer plaster skim coat. 3 5/8" stl studs 20 GA @16"O.C. Batt insulation Type SAFB. 3 layer 5/8" USG fiberock brand panels, glue third layer finished with 3-32" thick gypsum veneer plaster skim coat
